bitfinex/quotes_SOLUSD_20250726
["timestamp","ask_amount","ask_price","bid_price","bid_amount"]
[1753566257674,7.20827697,186.11,186.1,0.75]
[1753566258776,7.20501788,186.11,186.1,0.75]
[1753566259176,3.18716595,186.11,186.1,0.75]
[1753566259571,3.18716595,186.11,186.1,2.3449]
[1753566259777,3.18716595,186.12,186.1,2.3449]
[1753566259962,3.18716595,186.12,186.11,0.69]
[1753566260979,7.20308125,186.12,186.11,0.69]
[1753566261184,3.18716595,186.12,186.11,0.69]
[1753566265458,3.21716595,186.13,186.11,0.69]
[1753566265964,3.18716595,186.12,186.11,0.69]
[1753566268471,3.21716595,186.13,186.11,0.69]
[1753566279794,0.03,186.13,186.11,0.69]
[1753566279983,3.21716595,186.13,186.11,0.69]
[1753566280805,3.21716595,186.13,186.1,1.6549]
[1753566280989,3.21716595,186.13,186.12,0.66]
[1753566284114,8.589755,186.13,186.12,0.66]
[1753566288416,3.21716595,186.13,186.12,0.66]
[1753566288712,0.03,186.13,186.12,0.66]
[1753566297119,4.05113797,186.13,186.12,0.66]
[1753566297918,0.03,186.13,186.12,0.66]
[1753566298305,4.05313183,186.13,186.12,0.66]
[1753566298509,0.03,186.13,186.12,0.66]
[1753566298708,4.05317095,186.13,186.12,0.66]
[1753566298901,0.03,186.13,186.12,0.66]
[1753566299317,4.05515893,186.13,186.12,0.66]
[1753566300333,4.05812326,186.13,186.12,0.66]
[1753566300807,9.43090004,186.13,186.11,0.69]
[1753566301124,4.02812326,186.12,186.11,0.69]
[1753566301936,4.0297947,186.12,186.11,0.69]
[1753566304030,4.03050463,186.12,186.11,0.69]
[1753566304921,4.03063103,186.12,186.11,0.69]
[1753566307836,4.03040396,186.12,186.11,0.69]
[1753566309329,4.03040396,186.12,186.11,0.75]
[1753566310732,4.03041061,186.12,186.11,0.75]
[1753566316739,0.03,186.13,186.11,0.75]
[1753566316931,4.03068142,186.12,186.11,0.75]
[1753566322445,4.03049357,186.12,186.11,0.75]
[1753566325256,0.03,186.13,186.11,0.75]
[1753566325552,4.05975355,186.13,186.11,0.75]
[1753566334155,0.03,186.13,186.11,0.75]
[1753566334357,4.05906419,186.13,186.11,0.75]
[1753566337063,0.03,186.13,186.11,0.75]
[1753566337232,4.05899439,186.13,186.11,0.75]
[1753566341860,4.05899439,186.13,186.11,0.06]
[1753566342158,4.05899439,186.13,186.12,0.66]
[1753566342867,4.05899439,186.13,186.11,0.72]
[1753566346066,0.03,186.13,186.11,0.72]
[1753566346361,4.05906355,186.13,186.11,0.72]
[1753566356464,0.03,186.13,186.11,0.72]
[1753566356650,4.06013561,186.13,186.11,0.72]
[1753566357059,4.06013561,186.13,186.12,0.7]
[1753566357260,4.06042605,186.13,186.12,0.7]
[1753566357447,0.03,186.13,186.12,0.7]
[1753566357644,4.06042605,186.13,186.12,0.7]
[1753566358257,0.03,186.13,186.12,0.7]
[1753566358440,4.06042605,186.13,186.12,0.7]
[1753566358641,0.03,186.13,186.12,0.7]
[1753566358849,4.06042605,186.13,186.12,0.7]
[1753566359050,0.03,186.13,186.12,0.7]
[1753566359361,4.06042605,186.13,186.12,0.7]
[1753566359541,0.03,186.13,186.12,0.7]
[1753566359741,4.06042605,186.13,186.12,0.7]
[1753566359946,0.03,186.13,186.12,0.7]
[1753566360264,4.06070302,186.13,186.12,0.7]
[1753566361658,0.03,186.13,186.12,0.7]
[1753566370755,0.03,186.13,186.12,6.07287771]
[1753566371757,0.03,186.13,186.12,22.85756168]
[1753566371953,0.03,186.13,186.12,116.32905077]
[1753566372281,0.03,186.13,186.12,122.80105077]
[1753566373560,0.03,186.13,186.12,122.86105077]
[1753566373762,1e-08,186.17,186.16,25.10070711]
[1753566373979,0.03,186.21,186.2,16.78468397]
[1753566374284,0.03,186.21,186.2,57.11184992]
[1753566374452,0.03,186.21,186.2,57.81184992]
[1753566374854,0.03,186.21,186.2,58.09617306]
[1753566375657,0.03,186.21,186.2,63.46674234]
[1753566379260,0.03,186.21,186.2,23.13957639]
[1753566379459,0.64,186.21,186.16,3.18716595]
[1753566379770,3.18716595,186.2,186.17,37.14]
[1753566379971,3.18716595,186.18,186.15,37.16]
[1753566380184,0.61,186.19,186.12,0.76]
[1753566380185,3.18716595,186.16,186.12,0.06]
[1753566380363,0.61,186.17,186.14,37.16]
[1753566380364,0.61,186.15,186.14,37.16]
[1753566381360,31.3711462,186.18,186.14,37.86]
[1753566381566,5.9811462,186.18,186.14,37.86]
[1753566381767,0.61,186.17,186.14,37.16]
[1753566383890,5.37105615,186.19,186.14,37.16]
[1753566384086,0.61,186.18,186.14,37.86]
[1753566384272,6.01029069,186.21,186.15,5.631599]
[1753566384475,6.01029069,186.21,186.16,37.93]
[1753566384677,5.40029069,186.21,186.16,42.891599]
[1753566384879,0.61,186.2,186.16,42.891599]
[1753566385079,0.61,186.19,186.16,37.26]
[1753566385276,0.61,186.19,186.16,42.221599]
[1753566385578,0.61,186.2,186.16,42.891599]
[1753566387189,0.03,186.21,186.17,0.67]
[1753566387403,0.64,186.21,186.17,0.67]
[1753566395807,0.03,186.21,186.18,0.67]
[1753566398408,0.03,186.21,186.19,0.67]
[1753566403419,0.03,186.21,186.17,5.43143379]
[1753566403726,0.03,186.21,186.18,0.67]
[1753566404390,0.03,186.21,186.17,6.10143379]
[1753566404391,0.64,186.21,186.17,6.10143379]
[1753566404709,0.03,186.21,186.18,0.67]
[1753566405286,0.03,186.21,186.19,0.67]
[1753566410599,0.03,186.21,186.2,0.67]
[1753566425136,4.04969485,186.21,186.2,0.67]
[1753566425436,4.04969485,186.21,186.18,37.24]
[1753566425616,4.04969485,186.21,186.19,0.66]
[1753566426005,0.03,186.21,186.19,0.66]
[1753566426233,4.05636695,186.21,186.19,0.66]
[1753566426423,0.03,186.21,186.19,0.66]
[1753566426630,4.05636695,186.21,186.19,0.66]
[1753566429736,4.05636695,186.21,186.18,37.24]
[1753566429904,4.05636695,186.21,186.2,0.66]
[1753566430641,4.05862988,186.21,186.2,0.66]
[1753566437942,4.06043129,186.21,186.2,0.66]
[1753566452458,4.06058264,186.21,186.2,0.66]
[1753566454254,4.06057733,186.21,186.2,0.66]
[1753566472465,0.03,186.21,186.2,0.66]
[1753566474847,0.03,186.21,186.2,6.03056928]
[1753566494662,0.03,186.21,186.2,43.17056928]
[1753566521578,0.03,186.21,186.2,59.95525325]
[1753566522418,0.03,186.21,186.2,63.12946662]
[1753566523606,0.03,186.21,186.2,59.95525325]
[1753566523807,0.03,186.21,186.2,63.12946662]
[1753566530211,0.03,186.21,186.2,59.95525325]
[1753566565524,0.03,186.21,186.2,63.12946662]
[1753566567241,0.03,186.22,186.2,153.27162819]
[1753566567441,0.03,186.22,186.21,3.89421337]
[1753566569137,0.03,186.22,186.21,52.33350134]
[1753566571841,0.03,186.22,186.21,142.33350134]
[1753566579029,0.03,186.25,186.24,26.0]
[1753566579235,0.03,186.25,186.24,66.27421337]
[1753566579553,0.03,186.25,186.24,66.99421337]
[1753566580654,0.03,186.25,186.24,72.36362917]
[1753566583647,0.03,186.25,186.24,162.36362917]
[1753566603566,0.03,186.25,186.24,179.43263628]
[1753566609680,0.03,186.25,186.24,176.25842291]
[1753566609974,0.03,186.25,186.24,179.43263628]
[1753566622873,0.03,186.25,186.24,176.25842291]
[1753566626298,0.03,186.25,186.24,179.43263628]
[1753566640110,0.03,186.25,186.24,176.25842291]
[1753566640292,0.03,186.25,186.24,179.43263628]
[1753566641003,0.64,186.25,186.24,132.78468397]
[1753566641184,0.64,186.25,186.24,169.90468397]
[1753566642899,0.64,186.25,186.24,79.90468397]
[1753566647890,0.64,186.25,186.24,78.90468397]
[1753566650111,0.03,186.25,186.24,78.90468397]
[1753566650486,0.03,186.25,186.24,84.27409977]
[1753566650689,0.03,186.25,186.24,88.16831314]
[1753566656608,1.2669,186.29,186.24,88.16831314]
[1753566656821,1.2669,186.29,186.25,0.65]
[1753566657121,1.2669,186.29,186.26,37.16]
[1753566658431,5.36750441,186.31,186.27,0.65]
[1753566658716,5.36750441,186.31,186.28,37.16]
[1753566659417,8.54171778,186.31,186.28,37.16]
[1753566664436,8.54171778,186.31,186.28,37.81]
[1753566665126,5.36711034,186.32,186.28,37.81]
[1753566665329,7.19558711,186.31,186.28,37.81]
[1753566665521,3.17421337,186.31,186.28,37.81]
[1753566666529,8.54165906,186.31,186.28,37.81]
[1753566668333,8.54163241,186.31,186.28,37.81]
[1753566669832,5.36717706,186.32,186.29,0.65]
[1753566670032,4.85891337,186.33,186.29,0.65]
[1753566670210,4.02128235,186.32,186.29,0.65]
[1753566670418,0.03,186.33,186.29,0.65]
[1753566670619,3.20421337,186.33,186.29,0.65]
[1753566670910,7.1954797,186.32,186.29,0.65]
[1753566671110,3.17421337,186.32,186.29,0.65]
[1753566671315,0.03,186.33,186.28,37.16]
[1753566671316,3.17421337,186.3,186.28,37.16]
[1753566671519,3.17421337,186.3,186.27,0.65]
[1753566671841,3.17421337,186.3,186.28,0.65]
[1753566672016,5.36717694,186.32,186.28,0.65]
[1753566672211,3.17421337,186.31,186.28,0.65]
[1753566675635,3.20421337,186.31,186.28,0.65]
[1753566678565,0.03,186.31,186.28,0.65]
[1753566678718,3.20421337,186.31,186.28,0.65]
[1753566683640,3.20421337,186.31,186.26,38.25]
[1753566684147,3.20421337,186.31,186.27,0.65]
[1753566684639,3.20421337,186.31,186.24,41.84468397]
[1753566684640,8.5716481,186.31,186.25,0.67]
[1753566684822,7.19861848,186.3,186.25,38.27]
[1753566685024,3.17421337,186.3,186.26,0.67]
[1753566685647,3.17421337,186.3,186.25,37.6]
[1753566685830,3.17421337,186.28,186.25,0.67]
[1753566686028,3.17421337,186.26,186.24,0.06]
[1753566687040,5.36862969,186.27,186.24,0.06]
[1753566687248,3.17421337,186.26,186.24,0.06]
[1753566688252,5.36797466,186.29,186.24,0.06]
[1753566688546,3.17421337,186.26,186.24,0.06]
[1753566688718,5.36797466,186.29,186.24,0.06]
[1753566688922,2.67421337,186.26,186.24,0.06]
[1753566690252,2.67421337,186.26,186.24,0.73]
[1753566691951,18.81589447,186.31,186.24,0.73]
[1753566692136,3.17421337,186.26,186.24,0.73]
[1753566697542,3.17421337,186.27,186.24,0.73]
[1753566697747,0.03,186.3,186.24,0.73]
[1753566697946,7.22261805,186.3,186.25,37.7]
[1753566698264,0.03,186.3,186.26,0.67]
[1753566699161,0.03,186.3,186.26,6.03879335]
[1753566699350,0.03,186.3,186.26,5.36879335]
[1753566699548,0.03,186.3,186.27,0.67]
[1753566701939,3.20421337,186.3,186.27,0.67]
[1753566710285,3.17421337,186.29,186.27,0.67]
[1753566711574,3.17421337,186.29,186.28,0.67]
[1753566715176,0.03,186.3,186.28,0.67]
[1753566715479,3.20421337,186.3,186.28,0.67]
[1753566717278,3.20421337,186.3,186.25,43.06908868]
[1753566717470,3.20421337,186.3,186.29,0.72]
[1753566718566,3.20421337,186.3,186.25,43.06908868]
[1753566718781,3.20421337,186.3,186.28,0.72]
[1753566719879,0.03,186.3,186.28,0.72]
[1753566721773,0.03,186.3,186.29,0.72]
[1753566742405,4.05339812,186.3,186.29,0.72]
[1753566754109,0.03,186.3,186.29,0.72]
[1753566773640,0.03,186.3,186.29,38.16]
[1753566783827,0.03,186.3,186.29,43.52797466]
[1753566784346,0.03,186.3,186.29,60.31265863]
[1753566784547,0.03,186.3,186.29,63.486872]
[1753566792953,0.03,186.3,186.29,63.77119514]
[1753566793347,0.03,186.3,186.29,153.77119514]
[1753566807668,0.03,186.3,186.29,150.59698177]
[1753566807872,0.03,186.3,186.29,153.77119514]
[1753566809773,0.03,186.3,186.29,150.59698177]
[1753566809959,0.03,186.3,186.29,153.77119514]
[1753566815686,0.09,186.47,186.42,16.78468397]
[1753566815976,0.19,186.49,186.46,19.95889734]
[1753566816185,0.19,186.49,186.47,37.5]
[1753566816358,0.09,186.48,186.47,37.5]
[1753566816968,0.19,186.49,186.47,37.5]
[1753566817166,0.19,186.49,186.48,16.78468397]
[1753566817363,0.1,186.49,186.48,16.78468397]
[1753566817956,0.19,186.49,186.48,54.28468397]
[1753566819174,5.55221812,186.49,186.48,37.5]
[1753566819378,8.72643149,186.49,186.48,37.5]
[1753566819572,10.36413149,186.49,186.48,37.5]
[1753566819786,10.36413149,186.49,186.47,37.5]
[1753566819979,0.09,186.48,186.47,37.5]
[1753566820786,8.6268665,186.48,186.41,16.78468397]
[1753566820964,3.26421337,186.47,186.42,37.5]
[1753566821165,3.26421337,186.46,186.42,37.5]
[1753566821488,3.26421337,186.45,186.42,37.5]
[1753566821782,0.09,186.44,186.42,37.5]
[1753566822079,3.17421337,186.43,186.41,37.52]
[1753566822287,3.17421337,186.43,186.4,37.52]
[1753566822586,0.09,186.42,186.4,37.52]
[1753566822984,5.4543278,186.42,186.37,16.78468397]
[1753566823166,0.09,186.41,186.38,37.52]
[1753566825283,0.09,186.4,186.38,37.52]
[1753566825992,5.36336819,186.45,186.38,37.52]
[1753566826180,5.03934026,186.42,186.38,37.52]
[1753566826493,0.09,186.41,186.38,37.52]
[1753566826671,5.03934026,186.42,186.38,37.52]
[1753566826862,5.03934026,186.42,186.38,38.19]
[1753566827888,0.09,186.42,186.38,38.19]
[1753566829382,10.40352597,186.43,186.38,38.19]
[1753566831799,10.40352597,186.43,186.39,0.67]
[1753566832604,5.45418571,186.43,186.39,0.67]
[1753566837109,5.36418571,186.43,186.39,0.67]
[1753566837797,2.79774852,186.47,186.39,6.03505677]
[1753566838107,0.03,186.48,186.42,4.94934026]
[1753566838304,4.97934026,186.48,186.43,38.15]
[1753566838506,4.97934026,186.48,186.44,0.69]
[1753566838682,4.97934026,186.48,186.45,0.69]
[1753566839077,10.34197486,186.48,186.45,0.69]
[1753566841004,10.34197486,186.48,186.44,0.69]
[1753566842394,10.43197486,186.48,186.44,0.69]
[1753566843191,4.94934026,186.46,186.43,37.46]
[1753566843392,5.03934026,186.46,186.43,37.46]
[1753566843602,5.03934026,186.45,186.4,0.69]
[1753566843902,5.03934026,186.45,186.4,38.17]
[1753566844097,0.09,186.44,186.4,38.17]
[1753566844508,5.45382957,186.44,186.4,38.17]
[1753566844694,10.40316983,186.44,186.4,38.17]
[1753566844893,10.31316983,186.44,186.4,38.17]
[1753566845090,10.31316983,186.44,186.4,37.48]
[1753566845398,10.31316983,186.44,186.41,0.69]
[1753566846108,5.36382957,186.44,186.41,0.69]
[1753566847584,4.94934026,186.42,186.37,0.69]
[1753566847809,4.94934026,186.42,186.38,37.48]
[1753566848002,5.03934026,186.42,186.38,38.17]
[1753566848307,5.03934026,186.42,186.39,0.69]
[1753566848308,4.94934026,186.42,186.39,0.69]
[1753566848703,5.36440863,186.42,186.39,0.69]
[1753566849300,5.36440863,186.42,186.4,0.69]
[1753566850412,5.36400168,186.43,186.41,0.69]
[1753566853904,5.36400168,186.43,186.42,0.69]
[1753566854098,5.36400168,186.43,186.4,0.69]
[1753566855214,10.31292398,186.45,186.4,0.69]
[1753566856196,10.40292398,186.45,186.38,47.79466331]
[1753566856510,10.40292398,186.45,186.41,0.69]
[1753566856913,10.31292398,186.45,186.41,0.69]
[1753566857216,10.31292398,186.45,186.42,0.69]
[1753566859710,5.36358372,186.45,186.42,0.69]
[1753566861222,5.36308055,186.46,186.42,0.69]
[1753566861705,4.94934026,186.45,186.42,0.69]
[1753566862504,4.94934026,186.45,186.43,0.69]
[1753566862901,3.16664383,186.45,186.43,0.69]
[1753566863414,34.53013658,186.45,186.43,0.69]
[1753566865611,8.53013658,186.45,186.43,0.69]
[1753566865910,8.53013658,186.45,186.38,42.84532305]
[1753566866109,8.53013658,186.45,186.42,0.72]
[1753566866311,4.01575298,186.44,186.42,0.72]
[1753566867197,5.36349275,186.45,186.42,0.72]
[1753566867394,4.01574142,186.44,186.42,0.72]
[1753566868034,5.36349275,186.45,186.42,0.72]
[1753566868236,4.01573035,186.44,186.43,0.72]
[1753566870900,4.04573035,186.45,186.43,0.72]
[1753566871100,4.01573035,186.44,186.43,0.72]
[1753566871417,4.04573035,186.45,186.43,0.72]
[1753566874025,4.04573035,186.45,186.44,0.72]
[1753566876237,0.03,186.45,186.44,0.72]
[1753566878158,4.04573035,186.45,186.44,0.72]
[1753566880030,0.03,186.45,186.44,0.72]
[1753566903139,0.03,186.45,186.44,6.08365586]
[1753566918469,0.03,186.45,186.44,26.03498366]
[1753566920777,0.03,186.45,186.44,22.86833983]
[1753566920979,0.03,186.45,186.44,26.03498366]
[1753566923875,0.03,186.45,186.44,116.03498366]
[1753566929074,0.03,186.45,186.44,90.0]
[1753566929283,0.03,186.45,186.44,127.26]
[1753566929878,0.03,186.45,186.44,37.26]
[1753566932764,0.12,186.45,186.4,32.05452482]
[1753566932967,0.09,186.44,186.41,37.26]
[1753566933275,0.03,186.45,186.41,37.26]
[1753566933484,0.12,186.45,186.41,37.26]
[1753566934957,0.12,186.45,186.41,37.95]
[1753566937459,0.03,186.45,186.41,37.26]
[1753566937768,0.12,186.45,186.41,37.95]
[1753566938583,0.03,186.45,186.41,37.95]
[1753566938979,0.12,186.45,186.41,37.95]
[1753566939370,0.03,186.45,186.41,37.95]
[1753566939582,0.03,186.45,186.42,0.69]
[1753566941984,0.03,186.45,186.41,37.26]
[1753566942189,0.03,186.45,186.43,0.69]
[1753566948186,0.03,186.45,186.41,42.62451301]
[1753566948392,0.03,186.45,186.44,0.69]
[1753566960811,0.03,186.45,186.44,0.69]
[1753566961182,0.03,186.45,186.42,0.71]
[1753566961384,0.03,186.45,186.41,37.26]
[1753566961385,3.16664383,186.44,186.41,37.97]
[1753566962408,3.28664383,186.45,186.41,37.97]
[1753566962598,0.03,186.45,186.42,0.71]
[1753566963502,3.19664383,186.45,186.42,0.71]
[1753566964595,3.19664383,186.45,186.43,0.71]
[1753566965094,0.03,186.45,186.43,0.71]
[1753566966607,3.19664383,186.45,186.43,0.71]
[1753566967509,3.19664383,186.45,186.41,37.26]
[1753566967688,0.03,186.45,186.44,0.71]
[1753566973332,0.03,186.45,186.44,26.02498366]
[1753566973895,0.03,186.45,186.44,63.28498366]
[1753566979102,3.16664383,186.5,186.45,16.78468397]
[1753566979298,3.16664383,186.5,186.46,37.97]
[1753566979699,3.16664383,186.5,186.47,0.71]
[1753566980899,31.45169336,186.51,186.47,0.71]
[1753566981109,3.16664383,186.5,186.47,0.71]
[1753566981903,5.39136584,186.52,186.47,0.71]
[1753566984423,3.16664383,186.51,186.47,0.71]
[1753566984996,3.28664383,186.52,186.47,0.71]
[1753566987231,8.6480623,186.52,186.47,0.71]
[1753566989735,5.48141847,186.52,186.47,0.71]
[1753566989907,8.6480623,186.52,186.47,0.71]
[1753566992449,5.48141847,186.52,186.47,0.67]
[1753566992618,8.6480623,186.52,186.47,0.67]
[1753566993222,8.6480623,186.52,186.48,0.67]
[1753566993621,3.16664383,186.51,186.48,0.67]
[1753566996238,5.39141847,186.52,186.48,0.67]
[1753566996440,3.16664383,186.51,186.48,0.67]
[1753566997637,0.03,186.52,186.49,0.67]
[1753566998435,0.03,186.52,186.49,37.93]
[1753566998843,0.03,186.52,186.5,0.67]
[1753567000146,0.03,186.52,186.49,37.26]
[1753567000326,3.19664383,186.52,186.49,37.93]
[1753567000521,0.03,186.52,186.49,37.93]
[1753567000839,0.03,186.52,186.5,0.67]
[1753567003218,0.03,186.52,186.51,0.67]
[1753567003558,0.03,186.52,186.5,0.67]
[1753567008225,0.03,186.52,186.51,0.67]
[1753567019967,0.03,186.52,186.51,25.9829706]
[1753567024259,0.03,186.52,186.51,26.26729374]
[1753567025363,0.03,186.52,186.51,116.26729374]
[1753567026665,0.03,186.52,186.51,153.50729374]
[1753567040853,0.03,186.52,186.51,116.26729374]
[1753567041056,0.03,186.52,186.51,153.50729374]
[1753567042266,0.03,186.52,186.51,153.56729374]
[1753567045186,0.03,186.52,186.51,115.3729706]
[1753567045353,0.03,186.52,186.51,152.6129706]
[1753567047358,0.03,186.52,186.51,54.08468397]
[1753567047557,0.03,186.52,186.51,57.2513278]
[1753567048353,0.03,186.52,186.51,54.08468397]
[1753567048568,0.03,186.52,186.51,57.2513278]
[1753567050579,0.03,186.52,186.51,57.9313278]
[1753567051464,0.03,186.52,186.51,63.2929706]
[1753567054078,0.03,186.52,186.51,57.9313278]
[1753567056880,0.03,186.52,186.51,63.2929706]
[1753567062878,0.03,186.52,186.51,153.2929706]
[1753567067293,0.03,186.52,186.51,153.57729374]
[1753567070271,0.03,186.52,186.51,179.57729374]
[1753567080608,0.03,186.52,186.51,142.33729374]
[1753567080786,0.03,186.52,186.51,141.3729706]
[1753567080990,0.03,186.52,186.51,178.5929706]
[1753567082192,0.03,186.52,186.51,179.56729374]
[1753567086693,0.03,186.52,186.51,89.56729374]
[1753567092514,0.03,186.52,186.51,179.56729374]
[1753567101431,0.03,186.52,186.51,176.40064991]
[1753567101630,0.03,186.52,186.51,179.56729374]
[1753567104208,0.03,186.52,186.51,175.71064991]
[1753567104436,0.03,186.52,186.51,178.87729374]
[1753567105337,0.03,186.52,186.51,179.58729374]
[1753567114822,0.03,186.52,186.51,173.2313278]
[1753567115028,0.03,186.52,186.51,54.06468397]
[1753567115952,0.12,186.52,186.51,37.28]
[1753567118944,0.03,186.52,186.51,37.28]
[1753567120952,0.03,186.52,186.51,37.99]
[1753567122430,0.03,186.52,186.51,57.9413278]
[1753567123834,0.03,186.52,186.51,60.13632677]
[1753567126574,0.03,186.52,186.51,59.00225225]
[1753567127209,0.03,186.52,186.51,53.64060945]
[1753567129296,0.03,186.52,186.51,53.70060945]
[1753567133425,0.03,186.52,186.51,59.06225225]
[1753567134421,0.03,186.52,186.51,53.70060945]
[1753567135223,0.03,186.52,186.51,59.06225225]
[1753567138134,0.03,186.52,186.51,62.51321922]
[1753567138304,0.03,186.56,186.55,42.78468397]
[1753567138510,0.03,186.56,186.55,84.2313278]
[1753567138722,0.03,186.56,186.55,81.75468397]
[1753567138924,0.03,186.56,186.55,84.9213278]
[1753567139829,0.03,186.56,186.55,90.28182096]
[1753567141227,0.03,186.56,186.55,90.5661441]
[1753567141417,0.15,186.65,186.56,17.06900711]
[1753567141619,0.15,186.64,186.59,45.9513278]
[1753567141822,0.15,186.64,186.59,81.32468397]
[1753567142026,0.15,186.64,186.59,85.1813278]
[1753567142432,0.15,186.65,186.59,90.54067181]
[1753567142638,0.15,186.65,186.59,87.37402798]
[1753567142948,0.15,186.65,186.59,90.54067181]
[1753567143519,0.15,186.65,186.59,87.37402798]
[1753567143725,0.15,186.65,186.59,90.54067181]
[1753567144334,0.15,186.65,186.59,87.37402798]
[1753567144536,0.15,186.65,186.59,90.54067181]
[1753567145849,0.15,186.65,186.59,180.54067181]
[1753567146047,0.15,186.64,186.59,177.37402798]
[1753567146231,0.15,186.64,186.59,180.54067181]
[1753567146750,3.16664383,186.65,186.59,132.78468397]
[1753567146943,3.16664383,186.65,186.59,39.2]
[1753567146944,0.15,186.61,186.59,39.2]
[1753567147319,1.5268,186.68,186.59,39.2]
[1753567147320,0.18,186.6,186.59,39.2]
[1753567147733,0.18,186.6,186.58,39.18]
[1753567147942,0.15,186.59,186.58,39.18]
[1753567148142,0.03,186.6,186.57,39.22]
[1753567148371,0.18,186.6,186.57,39.22]
[1753567150965,0.15,186.59,186.55,6.1102817]
[1753567151131,0.15,186.59,186.56,39.18]
[1753567151755,3.19664383,186.6,186.56,39.18]
[1753567151951,3.34664383,186.6,186.56,39.18]
[1753567152454,0.15,186.59,186.56,39.18]
[1753567152647,0.15,186.59,186.55,39.91]
[1753567153445,3.31664383,186.59,186.55,39.91]
[1753567153638,3.31664383,186.59,186.55,0.06]
[1753567154033,3.16664383,186.59,186.55,0.06]
[1753567154237,3.31664383,186.58,186.55,0.06]
[1753567154539,3.16664383,186.57,186.55,0.06]
[1753567154740,3.31664383,186.57,186.55,0.06]
[1753567156030,3.16664383,186.56,186.55,0.06]
[1753567156258,3.31664383,186.56,186.55,0.06]
[1753567156463,4.84124383,186.56,186.55,0.06]
[1753567157551,7.03480583,186.56,186.55,0.06]
[1753567157765,10.20144966,186.56,186.55,0.06]
[1753567158845,11.97761675,186.56,186.55,0.06]
[1753567159361,12.26193989,186.56,186.51,0.06]
[1753567159537,4.94281092,186.52,186.51,0.06]
[1753567159741,31.22713406,186.52,186.51,0.06]
[1753567159937,31.37713406,186.52,186.51,0.06]
[1753567161159,36.73848941,186.52,186.51,0.06]
[1753567166539,36.30416627,186.52,186.51,0.06]
[1753567166757,75.28416627,186.52,186.51,0.06]
[1753567167447,49.28416627,186.52,186.51,0.06]
[1753567172148,44.34135535,186.52,186.51,0.06]
[1753567172470,49.28416627,186.52,186.51,0.06]
[1753567173662,49.28416627,186.52,186.51,0.76]
[1753567175181,43.92281092,186.52,186.51,0.76]
[1753567175550,4.94281092,186.52,186.51,0.76]
[1753567176280,5.36025418,186.56,186.51,0.76]
[1753567176484,43.86281092,186.55,186.51,0.76]
[1753567177564,38.92,186.55,186.51,0.76]
[1753567178448,0.03,186.57,186.55,1.6197]
[1753567178654,0.03,186.57,186.56,0.7]
[1753567181970,4.97281092,186.57,186.56,0.7]
[1753567182771,0.03,186.57,186.56,0.7]
[1753567182970,4.97281092,186.57,186.56,0.7]
[1753567192397,0.03,186.57,186.56,0.7]
[1753567201900,3.19248144,186.57,186.56,0.7]
[1753567207713,0.03,186.57,186.56,0.7]
[1753567217824,3.19248144,186.57,186.56,0.7]
[1753567218729,0.03,186.57,186.56,0.7]
[1753567219432,0.03,186.57,186.56,6.06020583]